bitfinex-derivatives/quotes_BTCF0:USTF0_20241006
["timestamp","ask_amount","ask_price","bid_price","bid_amount"]
[1728219999159,0.064569,62338.0,62337.0,0.21092607]
[1728220000058,0.064569,62338.0,62337.0,0.20992607]
[1728220000259,0.064569,62338.0,62337.0,0.20792607]
[1728220000670,0.064569,62338.0,62337.0,0.11229751]
[1728220001071,0.064569,62338.0,62337.0,0.0004]
[1728220001271,0.425369,62338.0,62337.0,0.0004]
[1728220002867,0.064569,62338.0,62337.0,0.0004]
[1728220003065,0.427369,62338.0,62337.0,0.0004]
[1728220004065,0.064172,62335.0,62329.0,0.0637715]
[1728220004270,0.0004,62330.0,62326.0,0.0641715]
[1728220004476,0.06458,62327.0,62326.0,0.0641715]
[1728220005293,0.06458,62327.0,62326.0,0.0004]
[1728220005781,0.12458,62327.0,62326.0,0.0004]
[1728220006180,0.12558,62327.0,62326.0,0.0024]
[1728220006672,0.12558,62327.0,62326.0,0.0054]
[1728220006673,0.12658,62327.0,62326.0,0.0054]
[1728220007671,0.12658,62327.0,62321.0,0.00240681]
[1728220007672,0.6079,62327.0,62321.0,0.00240681]
[1728220007875,0.064586,62322.0,62321.0,0.00240681]
[1728220008075,0.064586,62322.0,62321.0,0.11232829]
[1728220008267,0.064586,62322.0,62321.0,0.20793496]
[1728220008869,0.064586,62322.0,62321.0,0.20993496]
[1728220009269,0.064586,62322.0,62321.0,0.11432829]
[1728220009777,0.065586,62322.0,62321.0,0.11432829]
[1728220010172,0.066586,62322.0,62321.0,0.11432829]
[1728220011473,0.066586,62322.0,62321.0,0.11415534]
[1728220012378,0.427386,62322.0,62321.0,0.11415534]
[1728220014777,0.066586,62322.0,62321.0,0.11415534]
[1728220014980,0.427386,62322.0,62321.0,0.11415534]
[1728220016171,0.427386,62322.0,62321.0,0.0656479]
[1728220016677,0.066586,62322.0,62321.0,0.0656479]
[1728220016879,0.427386,62322.0,62321.0,0.0656479]
[1728220017487,0.066586,62322.0,62321.0,0.002]
[1728220018992,0.016686,62322.0,62321.0,0.002]
[1728220019191,0.0024,62322.0,62321.0,1.02025337]
[1728220019683,0.0004,62327.0,62321.0,0.95606637]
[1728220019888,0.0004,62327.0,62326.0,0.0004]
[1728220020477,0.0004,62327.0,62326.0,0.064581]
[1728220020677,0.0004,62330.0,62329.0,0.064178]
[1728220020883,0.0004,62330.0,62329.0,0.17578556]
[1728220021086,0.0004,62330.0,62329.0,0.17618556]
[1728220021283,0.0004,62330.0,62329.0,0.65750556]
[1728220021489,0.0004,62338.0,62334.0,0.064173]
[1728220021687,0.0004,62338.0,62334.0,1.19328756]
[1728220021881,0.0004,62338.0,62337.0,0.06457]
[1728220022079,0.0004,62338.0,62337.0,0.27153168]
[1728220022276,0.0004,62338.0,62337.0,0.29661297]
[1728220022691,0.0004,62338.0,62337.0,0.23405885]
[1728220023389,0.0004,62338.0,62337.0,1.31729885]
[1728220023782,0.0004,62338.0,62337.0,1.4414641]
[1728220023984,0.0014,62338.0,62337.0,1.4414641]
[1728220024185,0.30641798,62343.0,62338.0,0.064168]
[1728220024499,0.30641798,62343.0,62342.0,0.07981416]
[1728220025187,0.30641798,62343.0,62342.0,0.0004]
[1728220025382,0.30641798,62343.0,62342.0,0.07981416]
[1728220025582,0.30841798,62343.0,62342.0,0.0004]
[1728220025783,0.37258198,62343.0,62342.0,0.0004]
[1728220026287,0.37358198,62343.0,62342.0,0.0004]
[1728220027882,0.37358198,62343.0,62342.0,0.064565]
[1728220028393,0.30941798,62343.0,62342.0,0.064965]
[1728220030794,0.003,62343.0,62342.0,0.064965]
[1728220031187,0.003,62343.0,62342.0,0.25466195]
[1728220031495,0.003,62343.0,62342.0,0.17534676]
[1728220033582,0.003,62343.0,62342.0,0.17521103]
[1728220036711,0.0004,62347.0,62344.0,0.064163]
[1728220036999,0.0004,62347.0,62344.0,0.064563]
[1728220038301,0.0074,62345.0,62344.0,0.064563]
[1728220040096,0.0074,62345.0,62344.0,0.45043971]
[1728220040404,0.0074,62345.0,62344.0,0.45043933]
[1728220040696,0.0074,62345.0,62344.0,0.425363]
[1728220041100,0.0074,62345.0,62344.0,0.425763]
[1728220041500,0.0004,62347.0,62344.0,1.4428]
[1728220041699,0.0004,62347.0,62346.0,0.064561]
[1728220041901,0.0004,62347.0,62346.0,0.664561]
[1728220042203,0.0004,62347.0,62346.0,1.145761]
[1728220042701,0.0004,62347.0,62346.0,1.146161]
[1728220043406,0.0044,62347.0,62346.0,1.146161]
[1728220044499,0.0044,62347.0,62346.0,1.147161]
[1728220044699,0.0044,62347.0,62346.0,0.547161]
[1728220045096,0.00280655,62356.0,62346.0,0.65697692]
[1728220045307,0.00280655,62356.0,62355.0,0.0004]
[1728220046304,0.00280655,62356.0,62355.0,0.0008]
[1728220046501,0.00580655,62356.0,62355.0,0.0008]
[1728220047008,0.06995755,62356.0,62355.0,0.0008]
[1728220047710,0.13895755,62356.0,62355.0,0.0018]
[1728220048202,0.14595755,62356.0,62355.0,0.0028]
[1728220050324,0.08595755,62356.0,62355.0,0.06619494]
[1728220053101,0.08595755,62356.0,62355.0,0.0028]
[1728220056408,0.08595755,62356.0,62355.0,0.0032]
[1728220057008,0.02180655,62356.0,62355.0,0.067352]
[1728220060222,0.02180655,62356.0,62355.0,0.177416]
[1728220061714,0.08595755,62356.0,62355.0,0.113264]
[1728220062522,0.02180655,62356.0,62355.0,0.177416]
[1728220064627,0.02180655,62356.0,62355.0,0.19282596]
[1728220064821,0.02180655,62356.0,62355.0,0.0032]
[1728220065521,0.08595755,62356.0,62355.0,0.0032]
[1728220068222,0.06416,62347.0,62344.0,0.00586]
[1728220068426,0.06456,62347.0,62346.0,0.0008]
[1728220068728,0.12456,62347.0,62346.0,0.0008]
[1728220069431,0.12456,62347.0,62346.0,0.0028]
[1728220069625,0.12456,62347.0,62346.0,0.0038]
[1728220070926,0.06456,62347.0,62346.0,0.0038]
[1728220071431,0.12456,62347.0,62346.0,0.0038]
[1728220071939,0.12456,62347.0,62346.0,0.0028]
[1728220072529,0.12456,62347.0,62346.0,0.0008]
[1728220072530,0.12656,62347.0,62346.0,0.0008]
[1728220072725,0.12856,62347.0,62346.0,0.0008]
[1728220073539,0.48936,62347.0,62346.0,0.0008]
[1728220074629,0.48736,62347.0,62346.0,0.0028]
[1728220075029,0.48736,62347.0,62346.0,0.0038]
[1728220075030,0.48536,62347.0,62346.0,0.0038]
[1728220075432,0.48636,62347.0,62346.0,0.0018]
[1728220075627,0.48836,62347.0,62346.0,0.0008]
[1728220076531,0.96956,62347.0,62346.0,0.0008]
[1728220077342,0.96856,62347.0,62346.0,0.0008]
[1728220077540,0.96956,62347.0,62346.0,0.0008]
[1728220078243,0.96856,62347.0,62346.0,0.0018]
[1728220078831,0.96656,62347.0,62346.0,0.0018]
[1728220079035,0.96656,62347.0,62346.0,0.0008]
[1728220079425,0.96756,62347.0,62346.0,0.0008]
[1728220079937,0.48636,62347.0,62346.0,0.0008]
[1728220080134,0.48636,62347.0,62343.0,0.04771182]
[1728220080135,1.56756,62347.0,62343.0,0.04771182]
[1728220080443,0.064169,62338.0,62330.0,0.0952975]
[1728220080734,0.064169,62338.0,62337.0,0.0004]
[1728220080735,0.064569,62338.0,62337.0,0.0004]
[1728220081737,0.065569,62338.0,62337.0,0.0074]
[1728220082448,0.065569,62338.0,62337.0,0.0134]
[1728220082645,0.066569,62338.0,62337.0,0.0134]
[1728220083245,0.0024,62338.0,62337.0,0.0134]
[1728220084042,0.066569,62338.0,62337.0,0.0134]
[1728220091644,0.064177,62330.0,62329.0,0.00280629]
[1728220091844,0.064577,62330.0,62329.0,0.00280629]
[1728220093347,0.065577,62330.0,62329.0,0.0024]
[1728220094153,0.066577,62330.0,62329.0,0.0034]
[1728220094351,0.066577,62330.0,62319.0,0.0332]
[1728220094352,0.064187,62321.0,62319.0,0.0332]
[1728220094559,0.064188,62320.0,62319.0,0.0332]
[1728220094753,0.064588,62320.0,62319.0,0.0332]
[1728220096442,0.0004,62320.0,62316.0,0.00240715]
[1728220096648,0.064191,62317.0,62316.0,0.00240715]
[1728220096860,0.064591,62317.0,62316.0,0.00240715]
[1728220098353,0.0004,62317.0,62316.0,0.20707984]
[1728220098659,0.0004,62317.0,62316.0,0.11178234]
[1728220098845,0.0014,62317.0,62316.0,0.11178234]
[1728220099160,0.065591,62317.0,62316.0,0.11178234]
[1728220099756,0.065591,62317.0,62316.0,0.00240715]
[1728220100459,0.064591,62317.0,62316.0,0.00240715]
[1728220100660,0.065591,62317.0,62316.0,0.00240715]
[1728220101562,0.066591,62317.0,62316.0,0.00240715]
[1728220102248,0.065591,62317.0,62316.0,0.00240715]
[1728220102451,0.066591,62317.0,62316.0,0.00240715]
[1728220102945,1.4446,62317.0,62313.0,0.0004]
[1728220103165,1.4446,62317.0,62307.0,0.0112]
[1728220103166,0.3632,62317.0,62307.0,0.0112]
[1728220103359,0.0004,62308.0,62304.0,0.0112]
[1728220103557,0.0004,62305.0,62302.0,0.0004]
[1728220104066,0.064205,62303.0,62302.0,0.0004]
[1728220104260,0.064205,62303.0,62302.0,0.10924448]
[1728220104558,0.0004,62305.0,62302.0,0.10924448]
[1728220104559,0.0004,62305.0,62302.0,0.0004]
[1728220104755,0.064603,62305.0,62304.0,0.0004]
[1728220106961,0.065603,62305.0,62304.0,0.0004]
[1728220107170,0.0014,62305.0,62304.0,0.064604]
[1728220107355,0.0024,62305.0,62304.0,0.064604]
[1728220107661,0.002,62305.0,62304.0,0.064604]
[1728220107871,0.0004,62308.0,62307.0,0.064201]
[1728220108055,0.425391,62317.0,62313.0,0.064195]
[1728220108360,0.426231,62317.0,62313.0,0.064595]
[1728220108759,0.36204,62317.0,62313.0,0.064595]
[1728220108953,0.3612,62317.0,62313.0,0.064595]
[1728220109153,0.0004,62317.0,62313.0,0.064595]
[1728220109953,0.064193,62316.0,62313.0,0.064595]
[1728220110465,0.0014,62314.0,62313.0,0.064595]
[1728220111154,0.065594,62314.0,62313.0,0.0004]
[1728220112368,0.066594,62314.0,62313.0,0.0024]
[1728220113156,0.065194,62314.0,62313.0,0.0024]
[1728220113363,0.001,62314.0,62313.0,0.11006531]
[1728220114967,0.065194,62314.0,62313.0,0.11006531]
[1728220117473,0.065194,62314.0,62313.0,0.0024]
[1728220117779,0.065194,62314.0,62313.0,0.11015011]
[1728220118275,0.0004,62317.0,62313.0,0.20455011]
[1728220118581,0.064193,62316.0,62314.0,0.10775011]
[1728220118781,0.064193,62316.0,62315.0,0.10775011]
[1728220120773,0.064193,62316.0,62315.0,0.20304761]
[1728220121180,0.064193,62316.0,62315.0,0.10775011]
[1728220121372,0.065193,62316.0,62315.0,0.20304761]
[1728220121765,0.066193,62316.0,62315.0,0.20504761]
[1728220121970,0.066193,62316.0,62315.0,0.20804761]
[1728220122281,0.066193,62316.0,62315.0,0.20783161]
[1728220122472,0.066193,62316.0,62315.0,0.11253411]
[1728220123577,0.066193,62316.0,62315.0,0.24080826]
[1728220127184,0.066193,62316.0,62315.0,0.24093428]
[1728220127779,0.002,62316.0,62315.0,0.30512728]
[1728220128371,0.002,62316.0,62315.0,0.069193]
[1728220131586,0.002,62316.0,62315.0,0.17673331]
[1728220132081,0.002,62316.0,62315.0,0.17669396]
[1728220132985,0.002,62316.0,62315.0,0.53749396]
[1728220133577,0.002,62316.0,62315.0,0.63315249]
[1728220134677,0.002,62316.0,62315.0,0.56258374]
[1728220134885,0.002,62316.0,62315.0,0.69046091]
[1728220135076,0.002,62316.0,62315.0,0.56258374]
[1728220135479,0.0004,62321.0,62320.0,0.064188]
[1728220135681,0.0004,62321.0,62320.0,0.26771208]
[1728220136582,0.0004,62321.0,62320.0,0.1718195]
[1728220136981,0.0004,62321.0,62320.0,0.1738195]
[1728220138489,0.0004,62321.0,62320.0,0.1758195]
[1728220140086,0.0004,62321.0,62320.0,0.27147695]
[1728220141498,0.0004,62321.0,62320.0,0.1758195]
[1728220141694,0.0004,62321.0,62320.0,0.20433646]
[1728220142995,0.0004,62321.0,62320.0,0.33219027]
[1728220143194,0.424982,62326.0,62320.0,0.26800227]
[1728220143390,0.424982,62326.0,62325.0,0.0004]
[1728220143894,0.064182,62326.0,62325.0,0.0004]
[1728220144097,0.424982,62326.0,62325.0,0.0004]
[1728220144487,0.426982,62326.0,62325.0,0.06415898]
[1728220145198,0.002,62326.0,62325.0,0.06415898]
[1728220145393,0.002,62326.0,62325.0,0.25140473]
[1728220145696,0.002,62326.0,62325.0,0.17170192]
[1728220146589,0.0004,62330.0,62325.0,0.10951992]
[1728220146794,0.0004,62330.0,62329.0,0.06413252]
[1728220147091,0.0004,62330.0,62329.0,0.12831052]
[1728220147392,0.0004,62330.0,62329.0,0.064578]
[1728220147889,0.0004,62330.0,62329.0,0.067578]
[1728220148293,0.064577,62330.0,62329.0,0.067578]
[1728220148499,0.065577,62330.0,62329.0,0.0034]
[1728220149298,0.064577,62330.0,62329.0,0.0054]
[1728220150201,0.066577,62330.0,62329.0,0.0004]
[1728220150504,0.066577,62330.0,62329.0,0.11051113]
[1728220151001,0.068577,62330.0,62329.0,0.10751113]
[1728220151698,0.133977,62330.0,62329.0,0.10751113]
[1728220153000,0.131977,62330.0,62329.0,0.10751113]
[1728220153401,0.129977,62330.0,62329.0,0.10751113]
[1728220153707,0.491777,62330.0,62329.0,0.10751113]
[1728220154089,0.16024731,62330.0,62329.0,0.10751113]
[1728220154302,0.064181,62326.0,62320.0,0.0004]
[1728220154600,0.0004,62321.0,62320.0,0.0004]
[1728220155691,0.065587,62321.0,62320.0,0.0024]
[1728220156599,0.065587,62321.0,62320.0,0.0054]
[1728220156990,0.065587,62321.0,62320.0,0.0024]
[1728220157191,0.066587,62321.0,62320.0,0.0054]
[1728220157705,0.065587,62321.0,62320.0,0.0054]
[1728220158793,0.064587,62321.0,62320.0,0.0034]
[1728220158996,0.064587,62321.0,62320.0,0.0054]
[1728220159310,0.0004,62321.0,62320.0,0.069588]
[1728220161899,0.0004,62321.0,62320.0,0.430388]
[1728220164801,0.0004,62321.0,62320.0,0.3662]
[1728220165007,0.064587,62321.0,62320.0,0.3662]
[1728220165396,0.0164166,62321.0,62320.0,0.49180635]
[1728220165596,0.0332,62330.0,62320.0,0.49180635]
[1728220165897,0.064186,62322.0,62321.0,0.12560635]
[1728220167620,0.064186,62322.0,62321.0,0.12760635]
[1728220168308,0.064186,62322.0,62321.0,0.12727735]
[1728220169416,0.064186,62322.0,62321.0,0.23442084]
[1728220170701,0.064186,62322.0,62321.0,0.23445992]
[1728220171008,0.064186,62322.0,62321.0,0.10913866]
[1728220173601,0.424986,62322.0,62321.0,0.10913866]
[1728220175099,0.064186,62322.0,62321.0,0.10913866]
[1728220175716,0.064186,62322.0,62321.0,1.59653866]
[1728220180607,0.064186,62322.0,62321.0,1.4914]
[1728220187824,0.10265404,62322.0,62321.0,1.4914]
[1728220188411,0.14737346,62322.0,62321.0,1.4914]
[1728220188617,0.064186,62322.0,62321.0,1.4914]
[1728220189924,0.124186,62322.0,62321.0,1.4914]
[1728220192826,0.484986,62322.0,62321.0,1.4914]
[1728220195224,0.124186,62322.0,62321.0,1.4914]
[1728220195536,0.484986,62322.0,62321.0,1.4914]
[1728220195725,0.61791731,62322.0,62321.0,1.4914]
[1728220197222,0.57364889,62322.0,62321.0,1.4914]
[1728220197417,0.76217513,62322.0,62321.0,1.4914]
[1728220197617,0.61804334,62322.0,62321.0,1.4914]
[1728220198025,0.56753884,62322.0,62321.0,1.4914]
[1728220198718,0.618105,62322.0,62321.0,1.4914]
[1728220199130,0.61810207,62322.0,62321.0,1.4914]
[1728220200227,0.56753884,62322.0,62321.0,1.4914]
[1728220200534,0.61810523,62322.0,62321.0,1.4914]
[1728220200934,0.55810523,62322.0,62321.0,1.4914]
[1728220201228,0.50753884,62322.0,62321.0,1.4914]
[1728220203734,0.424986,62322.0,62321.0,1.4914]
[1728220206730,0.424986,62322.0,62321.0,1.55525168]
[1728220207119,0.3608,62329.0,62322.0,0.064185]
[1728220207120,0.064182,62326.0,62322.0,0.064185]
[1728220207334,0.064182,62326.0,62325.0,0.04833124]
[1728220207527,0.064182,62326.0,62325.0,0.0004]
[1728220207722,0.3608,62329.0,62325.0,0.0004]
[1728220207947,0.3608,62329.0,62328.0,0.11249934]
[1728220210138,0.3728,62329.0,62328.0,0.11249934]
[1728220211424,0.3728,62329.0,62328.0,0.064579]
[1728220212023,0.3728,62329.0,62328.0,0.11249934]
[1728220212422,0.3728,62329.0,62328.0,0.064579]
[1728220213534,0.3728,62329.0,62328.0,0.0004]
[1728220213840,0.436978,62329.0,62328.0,0.0004]
[1728220216525,0.496978,62329.0,62328.0,0.0004]
[1728220218627,0.57959173,62329.0,62328.0,0.0004]
[1728220225732,0.496978,62329.0,62328.0,0.0004]
[1728220226237,0.52600803,62329.0,62328.0,0.0004]
[1728220226735,0.496978,62329.0,62328.0,0.0004]
[1728220233752,0.57903809,62329.0,62328.0,0.0004]
[1728220234048,0.53495038,62329.0,62328.0,0.0004]
[1728220234433,0.53498911,62329.0,62328.0,0.0004]
[1728220236145,0.59598911,62329.0,62328.0,0.0004]
[1728220239745,0.59591204,62329.0,62328.0,0.0004]
[1728220240654,0.557978,62329.0,62328.0,0.0004]
[1728220243446,0.557978,62329.0,62328.0,0.04833162]
[1728220243955,0.557978,62329.0,62328.0,0.0004]
[1728220248848,0.68939013,62329.0,62328.0,0.0004]
[1728220255758,0.557978,62329.0,62328.0,0.0004]
[1728220257355,0.527478,62329.0,62328.0,0.0004]
[1728220258747,0.166678,62329.0,62328.0,0.0004]
[1728220259262,0.527478,62329.0,62328.0,0.0004]
[1728220260250,0.527478,62329.0,62328.0,0.04833162]
[1728220262466,0.527478,62329.0,62328.0,0.0004]
[1728220263270,0.527478,62329.0,62328.0,0.04833162]
[1728220263957,0.496978,62329.0,62328.0,0.04833162]
[1728220264459,0.136178,62329.0,62328.0,0.04833162]
[1728220264661,0.496978,62329.0,62328.0,0.04833162]
[1728220265162,0.136178,62329.0,62328.0,0.04833162]
[1728220265361,0.496978,62329.0,62328.0,0.0004]
[1728220268056,0.496978,62329.0,62328.0,0.04834217]
[1728220268566,0.496978,62329.0,62328.0,0.0004]
[1728220268954,0.496978,62329.0,62328.0,0.04834261]
[1728220269159,0.496978,62329.0,62328.0,0.0004]
[1728220270463,0.496978,62329.0,62328.0,0.04834549]
[1728220270860,0.57816021,62329.0,62328.0,0.0004]
[1728220272271,0.21736021,62329.0,62328.0,0.0004]
[1728220272478,0.57816021,62329.0,62328.0,0.0004]
[1728220275072,0.77232504,62329.0,62328.0,0.0004]
[1728220275275,0.72263837,62329.0,62328.0,0.0004]
[1728220275497,0.57816021,62329.0,62328.0,0.0004]
[1728220275701,0.57816021,62329.0,62321.0,1.47588514]
[1728220275702,0.064186,62322.0,62321.0,1.47588514]
[1728220275903,0.20907482,62322.0,62321.0,1.47588514]
[1728220276095,0.30215753,62322.0,62321.0,1.47588514]
[1728220276291,0.39967687,62322.0,62321.0,1.47588514]
[1728220276896,0.39892718,62322.0,62321.0,1.47788514]
[1728220277303,0.39892718,62322.0,62321.0,1.48088514]
[1728220278202,0.25448517,62322.0,62321.0,1.48088514]
[1728220278401,0.20517941,62322.0,62321.0,1.48088514]
[1728220278797,0.124586,62322.0,62321.0,1.48088514]
[1728220280202,0.15333181,62322.0,62321.0,1.48088514]
[1728220280912,0.51413181,62322.0,62321.0,1.48088514]
[1728220286020,0.55126611,62322.0,62321.0,1.48088514]
[1728220286612,0.55127388,62322.0,62321.0,1.48088514]
[1728220287909,0.50566725,62322.0,62321.0,1.51088514]
[1728220288121,0.50566725,62322.0,62321.0,1.57268514]
[1728220290414,0.46252807,62322.0,62321.0,1.57268514]
[1728220291121,0.46255012,62322.0,62321.0,1.57268514]
[1728220293913,0.425386,62322.0,62321.0,1.62063063]
[1728220294106,0.064586,62322.0,62321.0,1.62063063]
[1728220294311,0.425386,62322.0,62321.0,1.62063063]
[1728220295905,0.425386,62322.0,62321.0,1.62056506]
[1728220296413,0.425386,62322.0,62321.0,1.57268514]
[1728220296812,0.425386,62322.0,62321.0,1.62056691]
[1728220297013,0.064586,62322.0,62321.0,1.62056691]
[1728220297323,0.425386,62322.0,62321.0,1.62056691]
[1728220297623,0.425386,62322.0,62321.0,1.57268514]
[1728220298220,0.425386,62322.0,62321.0,1.62056897]
[1728220300924,0.425386,62322.0,62321.0,1.57268514]
[1728220301127,0.5059561,62322.0,62321.0,1.57268514]
[1728220301918,0.1451561,62322.0,62321.0,1.57268514]
[1728220304224,0.1451561,62322.0,62321.0,1.48088514]
[1728220306131,0.064586,62322.0,62321.0,1.48088514]
[1728220311528,0.425386,62322.0,62321.0,1.48088514]
[1728220312330,0.064586,62322.0,62321.0,1.54477446]
[1728220312540,0.425386,62322.0,62321.0,1.54477446]
[1728220312930,0.064586,62322.0,62321.0,1.54477446]
[1728220313129,0.425386,62322.0,62321.0,1.54477446]
[1728220313442,0.425386,62322.0,62321.0,1.48088514]
[1728220313644,0.425386,62322.0,62321.0,1.54477446]
[1728220314237,0.425386,62322.0,62321.0,1.48088514]
[1728220315936,0.50578991,62322.0,62321.0,1.48088514]
[1728220317441,0.14498991,62322.0,62321.0,1.48088514]
[1728220317642,0.50578991,62322.0,62321.0,1.48088514]
[1728220322642,0.55504464,62322.0,62321.0,1.48088514]
[1728220323148,0.58804464,62322.0,62321.0,1.48088514]
[1728220324037,0.458386,62322.0,62321.0,1.52881252]
[1728220334049,0.097586,62322.0,62321.0,1.52881307]
[1728220334351,0.097586,62322.0,62321.0,1.48088514]
[1728220334854,0.458386,62322.0,62321.0,1.48088514]
[1728220335048,0.49530524,62322.0,62321.0,1.48088514]
[1728220336559,0.458386,62322.0,62321.0,1.48088514]
[1728220337462,0.097586,62322.0,62321.0,1.48088514]
[1728220337663,0.819186,62322.0,62321.0,1.48088514]
[1728220337957,0.94785768,62322.0,62321.0,1.48088514]
[1728220338158,0.94785768,62322.0,62321.0,1.40057934]
[1728220338357,1.092191,62322.0,62321.0,1.40057934]
[1728220338558,1.09216125,62322.0,62321.0,1.40057934]
[1728220339449,0.94782793,62322.0,62321.0,1.40057934]
[1728220339649,0.22622793,62322.0,62321.0,1.40057934]
[1728220339849,0.94782793,62322.0,62321.0,1.40057934]
[1728220340253,0.8985652,62322.0,62321.0,1.40057934]
[1728220341453,0.1769652,62322.0,62321.0,1.40057934]
[1728220341655,0.8985652,62322.0,62321.0,1.40057934]
[1728220343256,0.89701626,62322.0,62321.0,1.40057934]
[1728220344650,2.02763902,62322.0,62321.0,1.35036478]
[1728220344854,2.02763902,62322.0,62321.0,1.32304927]
[1728220345050,2.20365848,62322.0,62321.0,1.32304927]
[1728220345250,2.26122411,62322.0,62321.0,1.19455329]
[1728220345456,2.20365848,62322.0,62321.0,1.19455329]
[1728220346162,1.97837626,62322.0,62321.0,1.19455329]
[1728220346753,1.97837626,62322.0,62321.0,1.16026329]
[1728220347057,1.97688788,62322.0,62321.0,0.58860645]
[1728220347250,1.97688788,62322.0,62321.0,0.41510245]
[1728220347454,1.97688788,62322.0,62321.0,0.22132745]
[1728220347659,1.97688788,62322.0,62321.0,0.12545145]
[1728220347965,1.97688788,62322.0,62321.0,4.5e-07]
[1728220350666,0.545547,62321.0,62320.0,4.5e-07]
[1728220350861,0.58196207,62321.0,62320.0,4.5e-07]
[1728220351162,0.064194,62314.0,62313.0,0.0004]
[1728220351363,0.064594,62314.0,62313.0,0.0004]
[1728220351555,0.546034,62314.0,62313.0,0.0004]
[1728220352062,0.064594,62314.0,62313.0,0.0004]
[1728220352465,0.125594,62314.0,62313.0,0.0004]
[1728220353465,0.126594,62314.0,62313.0,0.0004]
[1728220354060,0.608034,62314.0,62313.0,0.0004]
[1728220354864,0.0642,62308.0,62305.0,0.0112]
[1728220355065,0.0646,62308.0,62302.0,0.0004]
[1728220355465,0.7862,62308.0,62302.0,0.0004]
[1728220355656,0.8462,62308.0,62302.0,0.0004]
[1728220356168,0.8482,62308.0,62307.0,0.0014]
[1728220356667,0.064203,62305.0,62302.0,0.0004]
[1728220356861,0.064603,62305.0,62302.0,0.0004]
[1728220357466,0.124603,62305.0,62302.0,0.0004]
[1728220359068,0.125603,62305.0,62302.0,0.0004]
[1728220359461,0.126603,62305.0,62302.0,0.0004]
[1728220361269,0.16098357,62305.0,62302.0,0.0004]
[1728220361769,0.18969929,62305.0,62302.0,0.0004]
[1728220362375,0.18970245,62305.0,62302.0,0.0004]
[1728220367171,0.18963352,62305.0,62302.0,0.0004]
[1728220368169,0.15531872,62305.0,62302.0,0.0004]
[1728220374279,0.09111572,62305.0,62303.0,0.064205]
[1728220374478,0.03071572,62305.0,62304.0,0.158204]
[1728220374662,0.03071572,62305.0,62304.0,0.20613759]
[1728220374974,0.03071572,62305.0,62304.0,0.158204]
[1728220375465,0.012,62305.0,62304.0,0.094]
[1728220375976,0.72296001,62308.0,62304.0,0.094]
[1728220376277,0.0004,62308.0,62306.0,0.064201]
[1728220376482,0.02935228,62310.0,62306.0,0.064201]
[1728220376678,0.3612,62314.0,62309.0,0.0004]
[1728220376981,0.03490971,62313.0,62309.0,0.0004]
[1728220377173,0.3612,62314.0,62309.0,0.0004]
[1728220377174,0.03490971,62312.0,62309.0,0.0004]
[1728220377382,0.03490971,62311.0,62309.0,0.0004]
[1728220377565,0.03490971,62310.0,62309.0,0.0004]
[1728220379071,0.03490971,62310.0,62309.0,0.0014]
[1728220379869,0.03590971,62310.0,62309.0,0.0024]
[1728220380276,0.03590971,62310.0,62309.0,0.0044]
[1728220380777,0.0358812,62310.0,62309.0,0.0044]
[1728220381182,0.0368812,62310.0,62309.0,0.0044]
[1728220382675,0.002,62310.0,62309.0,0.0044]
[1728220383677,0.066198,62310.0,62309.0,0.0044]
[1728220385772,0.002,62310.0,62309.0,0.0044]
[1728220386772,0.002,62310.0,62309.0,1.08588]
[1728220387077,0.3612,62321.0,62313.0,0.064195]
[1728220387078,0.3608,62315.0,62313.0,0.064195]
[1728220387282,0.3612,62321.0,62313.0,0.064195]
[1728220387283,0.3612,62321.0,62314.0,0.0004]
[1728220387670,0.3612,62321.0,62320.0,0.0004]
[1728220388585,0.3608,62329.0,62320.0,0.0004]
[1728220388586,0.06658805,62327.0,62320.0,0.0004]
[1728220388785,0.064182,62325.0,62321.0,0.0004]
[1728220389982,0.064182,62326.0,62321.0,0.0004]
[1728220390175,0.064182,62325.0,62321.0,0.0004]
[1728220390377,0.064182,62325.0,62321.0,0.0621]
[1728220390684,0.064182,62325.0,62321.0,0.54346]
[1728220391376,0.064182,62325.0,62321.0,0.54646]
[1728220391978,0.064182,62325.0,62321.0,0.54746]
[1728220394984,0.064182,62325.0,62321.0,0.0661]
[1728220398090,0.064182,62325.0,62321.0,0.0044]
[1728220399078,0.0325,62326.0,62320.0,0.0004]
[1728220399079,0.3612,62322.0,62320.0,0.0004]
[1728220399291,0.3612,62322.0,62309.0,0.0041]
[1728220399292,0.064193,62315.0,62309.0,0.0041]
[1728220399483,0.064593,62315.0,62309.0,0.0004]
[1728220401294,0.064593,62315.0,62314.0,0.0008]
[1728220401993,0.065593,62315.0,62314.0,0.0018]
[1728220402296,0.066593,62315.0,62314.0,0.0018]
[1728220402988,0.18998892,62315.0,62314.0,0.0018]
[1728220406197,0.064198,62310.0,62309.0,0.0004]
[1728220406581,0.064598,62310.0,62309.0,0.0004]
[1728220407496,0.064598,62310.0,62309.0,0.0008]
[1728220407995,0.065598,62310.0,62309.0,0.0008]
[1728220408496,0.066598,62310.0,62309.0,0.0008]
[1728220409400,0.0024,62310.0,62309.0,0.0008]
[1728220409601,0.0024,62310.0,62309.0,0.064999]
[1728220409797,0.0024,62310.0,62309.0,0.546479]
[1728220411991,0.0024,62310.0,62309.0,0.064999]
[1728220416506,0.0024,62310.0,62309.0,0.25279517]
[1728220417100,0.0024,62310.0,62309.0,0.14469408]
[1728220417311,0.0024,62310.0,62309.0,0.25279388]
[1728220418200,0.0024,62310.0,62309.0,0.14469408]
[1728220419410,0.0024,62310.0,62309.0,0.25279454]
[1728220419598,0.0024,62310.0,62309.0,0.14469408]
[1728220419998,0.0024,62310.0,62309.0,0.064999]
[1728220420210,0.0024,62310.0,62309.0,0.14469408]
[1728220420504,0.0024,62310.0,62309.0,0.064999]
[1728220420996,0.0024,62310.0,62309.0,0.14469408]
[1728220421396,0.0024,62310.0,62309.0,0.17314463]
[1728220422894,0.0024,62310.0,62309.0,0.17317487]
[1728220428617,0.0024,62310.0,62309.0,0.064999]